Cogmind - Beta 13 @@@ ROGUE MODE // 2024.04.27 @ 18:08:28 Player: Spoodle Result: Destroyed by H-81 Overseer with Heavy Linear Accelerator Performance ------------- Evolutions (9) 4500 Regions Visited (22) 4400 Robots Destroyed (174) 870 Value Destroyed (8054) 8054 Prototype IDs (48) 960 Alien Tech Used (1) 200 Bonus (1323) 1323 TOTAL SCORE: 20307 Bonus ------- High Alert Combat Kills 266 Follower Combat Kills 580 Aligned with FarCom 300 Met Data Miner 300 Friendly Fire -123 Cogmind --------- Core Integrity 0/1600 Matter 193/300 Energy 78/100 System Corruption 16% Temperature Cool (0) Movement Core (50) Location -1/Access Parts ------- > --- POWER (2) -------- (None) > --- PROPULSION (5) --- (None) > --- UTILITY (13) ----- (None) > --- WEAPON (5) ------- (None) > --- INVENTORY (5) ---- Shock Absorption System Peak State ------------ > --- POWER ------------ Quantum Reactor Quantum Reactor > --- PROPULSION ------- Biometal Medium Treads Biometal Medium Treads Biometal Medium Treads Armored Heavy Treads > --- UTILITY ---------- Advanced Cryofiber Web Advanced Heat Sink Advanced Cooling System Medium Storage Unit Machine Analyzer Advanced Visual Processing Unit Improved Signal Interpreter Advanced Targeting Computer Advanced Targeting Computer Centrium Medium Armor Plating Centrium Medium Armor Plating Graphene Brace Improved Force Field > --- WEAPON ----------- Phase Gun Advanced Variable Charge Gun Quantum Rifle Smartbomb Launcher > --- INVENTORY -------- Neutrino Core Advanced Heat Sink Advanced Heat Sink Advanced Cooling System Shock Absorption System Advanced Variable Charge Gun Advanced Plasma Cannon Heavy Phase Cannon [Rating: 163] Favorites ----------- Power Quantum Reactor Engine Improved Ion Engine Power Core Light Nuclear Core Reactor Quantum Reactor Propulsion Light Treads Treads Light Treads Leg Aluminum Leg Flight Unit Flying Fortress v7 Utility Advanced Heat Sink Device Advanced Heat Sink Storage Medium Storage Unit Processor Improved Signal Interpreter Hackware System Shield Protection Centrium Medium Armor Plating Weapon Wave Gun Energy Gun Wave Gun Energy Cannon Particle Cannon Ballistic Gun Assault Rifle Launcher Missile Launcher Build | -11 -10 -10 -9 -9 -9 -8 -8 -7 -7 -7 -7 -6 -6 -6 -6 -6 -6 -5 -4 -3 -2 -1 ------- Run | Yrd Mat Min Mat Min Exi Min Mat Fac Low Low Dat Pro Fac Ext Cet Arc Hub Fac Fac Res Res Acc Slots Evolved 18 | . . . 2 . . . 2 2 . . . . 2 . . . . 2 2 2 2 2 Power 1 | . . . . . . . . 1 . . . . . . . . . . . . . . Propulsion 3 | . . . 1 . . . 1 . . . . . . . . . . . . . . 1 Utility 11 | . . . 1 . . . 1 1 . . . . 1 . . . . 1 2 2 2 . Weapon 3 | . . . . . . . . . . . . . 1 . . . . 1 . . . 1 Parts Attached 239 | 7 5 4 11 3 . 2 18 20 6 19 . 11 12 31 8 6 4 10 15 8 2 37 Power 23 | 1 . 1 . 1 . . 1 3 . 2 . 1 . 5 1 1 . . 2 . 1 3 Engine 7 | 1 . 1 . 1 . . 1 . . . . . . 3 . . . . . . . . Core 11 | . . . . . . . . 3 . 2 . 1 . 2 . 1 . . 1 . . 1 Reactor 5 | . . . . . . . . . . . . . . . 1 . . . 1 . 1 2 Propulsion 37 | 2 2 . 4 1 . . 7 . . . . . . 10 1 2 1 1 1 1 . 4 Treads 22 | . 2 . 2 . . . 3 . . . . . . 4 1 2 1 1 1 1 . 4 Leg 12 | 2 . . 2 1 . . 2 . . . . . . 5 . . . . . . . . Wheel . | . . . . . . . . . . . . . . . . . . . . . . . Hover . | . . . . . . . . . . . . . . . . . . . . . . . Flight 3 | . . . . . . . 2 . . . . . . 1 . . . . . . . . Utility 86 | 2 2 1 4 . . 1 3 8 2 5 . 4 5 7 1 2 2 6 9 5 1 16 Device 52 | 1 1 1 2 . . 1 2 4 1 4 . 4 4 5 . 1 1 3 6 2 1 8 Storage 4 | 1 1 . 1 . . . . 1 . . . . . . . . . . . . . . Processor 9 | . . . . . . . . 1 1 . . . . . . . . 1 1 1 . 4 Hackware 2 | . . . . . . . . . . . . . . . . . . . . . . 2 Protection 19 | . . . 1 . . . 1 2 . 1 . . 1 2 1 1 1 2 2 2 . 2 Artifact . | . . . . . . . . . . . . . . . . . . . . . . . Weapon 93 | 2 1 2 3 1 . 1 7 9 4 12 . 6 7 9 5 1 1 3 3 2 . 14 Energy Gun 31 | 1 . 2 3 1 . . 4 . . . . 1 3 4 2 1 . 3 1 2 . 3 Energy Cannon 25 | . . . . . . . 1 4 1 7 . 2 2 1 1 . . . 1 . . 5 Ballistic Gun 19 | 1 1 . . . . 1 2 5 1 1 . 1 . 2 2 . 1 . 1 . . . Ballistic Cannon . | . . . . . . . . . . . . . . . . . . . . . . . Launcher 18 | . . . . . . . . . 2 4 . 2 2 2 . . . . . . . 6 Special Weapon . | . . . . . . . . . . . . . . . . . . . . . . . Impact Weapon . | . . . . . . . . . . . . . . . . . . . . . . . Slashing Weapon . | . . . . . . . . . . . . . . . . . . . . . . . Piercing Weapon . | . . . . . . . . . . . . . . . . . . . . . . . Special Melee Weapon . | . . . . . . . . . . . . . . . . . . . . . . . Unidentified Prototypes 12 | . . . . . . . 2 1 . . . 1 . . 4 . . 1 2 . . 1 Corrupted Parts 1 | . . . . . . . . . . . . . . 1 . . . . . . . . System Corruption 1 | . . . . . . . . . . . . . . 1 . . . . . . . . Parts Lost 47 | . . 4 1 1 . . 2 . 2 2 . . . 6 3 4 . . . 1 . 21 Power 10 | . . 1 . . . . 1 . 1 1 . . . 1 . 1 . . . . . 4 Propulsion 7 | . . . 1 1 . . . . . . . . . . . 1 . . . . . 4 Utility 16 | . . 1 . . . . . . 1 1 . . . 3 1 2 . . . 1 . 6 Weapon 14 | . . 2 . . . . 1 . . . . . . 2 2 . . . . . . 7 Highest Loss Streak 15 | . . 4 1 1 . . 1 . 2 2 . . . 3 3 2 . . . 1 . 15 To Critical Strikes 1 | . . . . . . . . . . . . . . . 1 . . . . . . . Average Slot Usage (%) 89 | . 100 93 99 100 100 100 94 75 74 70 76 76 78 94 93 91 92 91 90 89 83 81 Engine 4 | . 14 9 11 11 11 11 9 6 . . . . . 6 6 2 . . . . . . Core 4 | . . . . . . . . 7 14 10 15 15 13 5 . 3 6 5 5 4 4 . Reactor 2 | . . . . . . . . . . . . . . . 5 6 6 5 4 4 4 6 Treads 13 | . 23 28 25 27 22 22 19 . . . . . . 6 5 17 19 17 15 14 13 13 Leg 4 | . 4 . 7 5 11 11 9 . . . . . . 16 14 1 . . . . . . Flight 1 | . . . . . . . 1 7 7 7 7 7 6 . . . . . . . . . Device 20 | . 14 13 13 22 22 22 26 28 7 20 15 15 19 19 13 12 13 18 27 31 27 19 Storage 7 | . 14 14 18 11 11 11 9 7 7 7 7 7 6 6 6 6 6 5 5 4 4 3 Processor 4 | . . . . . . . . . 14 7 7 7 6 6 6 6 6 6 5 4 8 15 Protection 4 | . . . . . . . . 1 7 1 7 7 5 5 12 12 13 6 5 4 4 5 Energy Gun 10 | . 1 9 22 22 22 18 9 . . . . . 4 9 13 13 13 21 15 13 13 10 Energy Cannon 4 | . . . . . . . 1 13 13 12 15 10 13 5 . . . . 3 4 4 4 Ballistic Gun 3 | . 26 18 . . . 3 6 1 . 2 . . . 2 4 6 5 . . . . . Naked Turns 32 | . . . . . . . . . . . . . . . . . . . . . . 32 Heaviest Build 142 | 15 20 22 42 37 37 37 42 53 41 43 43 45 51 55 68 76 77 82 87 108 123 142 Greatest Support 165 | 20 40 40 60 60 40 40 60 50 50 50 50 50 50 82 80 126 126 133 145 145 125 165 Greatest Overweight (x) 4 | 4 . . 1 . . . 3 1 . . . . 1 1 . . . . . . . 1 Average Overweight (x) . | . . . . . . . . . . . . . . . . . . . . . . . Largest Inventory Capacity 15 | 8 10 10 15 15 15 15 15 15 10 10 10 10 10 10 10 10 10 10 10 10 10 10 Average Capacity 10 | 7 8 10 14 15 15 15 15 10 10 10 10 10 10 10 10 10 10 10 10 10 10 9 Most Carried 15 | 6 8 8 15 15 14 15 15 14 10 10 10 10 10 10 10 10 10 10 10 10 10 10 Average Carried 10 | 3 7 7 10 14 12 14 14 10 10 9 10 9 9 9 9 9 10 9 9 10 10 7 Final Capacity 15 | 8 10 10 15 15 15 15 15 10 10 10 10 10 10 10 10 10 10 10 10 10 10 5 Final Carried 15 | 6 8 7 15 12 14 15 15 10 10 10 10 10 10 9 10 10 10 10 10 10 10 1 Class Distribution -------------------- 35% | Scavenger-Tank 34% | Scavenger-Mutant 16% | Mutant 13% | Scavenger-Skirmisher Dominant Class ---------------- Mutant | -10/Materials Mutant | -10/Mines Scavenger-Mutant | -9/Materials Scavenger-Mutant | -9/Mines Scavenger-Mutant | -9/Exiles Scavenger-Mutant | -8/Mines Scavenger-Mutant | -8/Materials Scavenger-Mutant | -7/Factory Mutant | -7/Lower Caves Scavenger-Mutant | -7/Lower Caves Scavenger-Mutant | -7/Data Miner Mutant | -6/Proximity Caves Scavenger-Skirmisher | -6/Factory Scavenger-Tank | -6/Extension Scavenger-Tank | -6/Cetus Scavenger-Tank | -6/Archives Scavenger-Tank | -6/Hub_04(d) Scavenger-Skirmisher | -5/Factory Scavenger-Tank | -4/Factory Scavenger-Tank | -3/Research Scavenger-Tank | -2/Research Scavenger-Tank | -1/Access Resources | -11 -10 -10 -9 -9 -9 -8 -8 -7 -7 -7 -7 -6 -6 -6 -6 -6 -6 -5 -4 -3 -2 -1 ----------- Run | Yrd Mat Min Mat Min Exi Min Mat Fac Low Low Dat Pro Fac Ext Cet Arc Hub Fac Fac Res Res Acc Matter Collected 4028 | 296 278 125 179 88 . 71 285 231 130 336 . 104 27 717 134 157 100 138 161 80 . 391 Remotely . | . . . . . . . . . . . . . . . . . . . . . . . Salvage Created 7961 | 76 245 140 449 59 . 73 313 327 120 468 . 53 100 854 202 358 414 295 673 565 . 2177 Parts 383 | 8 19 5 27 3 . 5 17 18 6 30 . 6 9 26 9 20 22 11 29 22 . 91 Haulers Intercepted 2 | . 1 . . . . . 1 . . . . . . . . . . . . . . . Recyclers Shooed 2 | . . 1 . . . . 1 . . . . . . . . . . . . . . . Parts Field Recycled . | . . . . . . . . . . . . . . . . . . . . . . . Retrieved Matter . | . . . . . . . . . . . . . . . . . . . . . . . Parts Self-Destructed 34 | . . . . . . . . . 5 24 . 5 . . . . . . . . . . Prevented 7 | . . . . . . . . . . 6 . 1 . . . . . . . . . . Kills | -11 -10 -10 -9 -9 -9 -8 -8 -7 -7 -7 -7 -6 -6 -6 -6 -6 -6 -5 -4 -3 -2 -1 ------- Run | Yrd Mat Min Mat Min Exi Min Mat Fac Low Low Dat Pro Fac Ext Cet Arc Hub Fac Fac Res Res Acc Combat Hostiles Destroyed 149 | . 7 2 12 2 . 2 7 5 3 15 . 4 4 16 2 4 7 5 13 6 . 33 Guns 82 | . 4 2 12 2 . 2 7 1 . . . . . 7 2 3 7 5 10 4 . 14 Cannons 22 | . . . . . . . . 4 1 4 . 1 . 5 . . . . 3 2 . 2 AOE 42 | . 3 . . . . . . . 2 11 . 3 4 4 . . . . . . . 15 Classes Destroyed 14 | 2 4 1 3 1 . . 1 1 . . . . . . . 1 . . . . . . Worker 4 | 1 . . 1 . . . . . . . . . . . . . . 1 . . . 1 Tunneler 3 | 2 . . . . . . . . . . . . . . . . . . . . . 1 Hauler 2 | . 1 . . . . . 1 . . . . . . . . . . . . . . . Recycler 3 | . . 1 . . . . . . . . . . . . . . . . . 1 . 1 Mechanic 2 | . . . 1 . . . . . . . . . . . . . . . . . . 1 Operator 1 | . . . . . . . . . . . . . . . . 1 . . . . . . Watcher 9 | . 1 . 1 . . . . 2 . . . . 1 1 . . . . . . . 3 Swarmer 49 | . 3 . 4 . . . . . 3 14 . 4 4 4 . . . . 4 . . 9 Grunt 44 | . 4 2 6 1 . 2 4 1 . . . . . 7 1 . 3 . 3 . . 10 Brawler 2 | . . . 1 . . . . . . . . . . 1 . . . . . . . . Duelist 3 | . . . . 1 . . . . . . . . . . . . 1 . . . . 1 Sentry 15 | . . . 1 . . . 1 1 . . . . . 2 . 4 2 . . 2 . 2 Hunter 9 | . . . . . . . 2 1 . . . . . 2 . . . . . . . 4 Programmer 26 | . . . . . . . . 2 . 1 . . . . . . 1 5 6 4 . 7 Cetus Guard 1 | . . . . . . . . . . . . . . . 1 . . . . . . . Decomposer 1 | . . . . . . . . . . 1 . . . . . . . . . . . . Guerrilla 1 | . . . . . . . . . . . . . . . 1 . . . . . . . Best Kill Streak 8 | 3 3 1 6 2 . 2 3 2 3 8 . 4 4 4 1 2 4 3 4 4 . 7 Combat Bots Only 8 | . 3 1 5 2 . 2 3 1 3 8 . 4 4 4 1 2 4 2 4 3 . 6 Max Kills in Single Turn 5 | 1 3 1 2 1 . 1 1 1 2 3 . 3 4 4 1 1 1 1 2 1 . 5 Gunslinging . | . . . . . . . . . . . . . . . . . . . . . . . Exploded 5 | . 3 . . . . . . . 2 3 . 3 4 4 . . . . . . . 5 Melee . | . . . . . . . . . . . . . . . . . . . . . . . Uniques/NPCs Destroyed . | . . . . . . . . . . . . . . . . . . . . . . . Combat | -11 -10 -10 -9 -9 -9 -8 -8 -7 -7 -7 -7 -6 -6 -6 -6 -6 -6 -5 -4 -3 -2 -1 -------- Run | Yrd Mat Min Mat Min Exi Min Mat Fac Low Low Dat Pro Fac Ext Cet Arc Hub Fac Fac Res Res Acc Hostile Shots Fired 1204 | . 42 36 45 7 . 9 62 87 7 43 . 9 3 145 34 38 57 50 50 62 . 418 Missed 422 | . 17 8 8 4 . 4 12 47 4 22 . 6 3 62 15 6 24 19 22 14 . 125 Damage Taken 15231 | . 283 384 404 63 . 73 569 390 339 484 . 46 32 1389 615 760 428 618 524 1154 . 6676 Core 2578 | . 79 89 61 39 . 44 70 5 61 84 . . . 145 90 24 35 40 20 25 . 1667 Absorbed by Shields 577 | . . . . . . . 156 80 . 32 . . . . . . . . . . . 309 Reduced by Siege Mode 64 | . . . . . . . . . . . . . . . . . . . . . . 64 Ignored by Resistances 74 | . . . . . . . . . . . . . . . . . . . . . . 74 Regen/Repaired (Parts) 171 | . . . . . . . . 19 . . . . 152 . . . . . . . . . Core Remaining (%) 81 | 100 . 32 . . . 64 87 . . . . 78 . . . . 65 96 98 98 100 . Volleys Fired 391 | 7 23 19 32 4 . 8 31 32 8 15 . 8 6 52 10 17 16 11 18 19 . 55 Largest 5 | 2 2 2 2 2 . 2 2 2 2 2 . 2 3 3 3 3 3 4 4 4 . 5 Hottest 672 | 70 40 130 140 140 . 140 118 137 137 137 . 131 212 219 225 197 197 323 332 499 . 672 Shots Fired 1029 | 14 46 35 62 8 . 16 62 63 16 30 . 15 14 141 31 51 47 43 74 76 . 185 Gun 746 | 14 46 35 62 8 . 16 50 14 2 1 . 1 2 84 27 51 47 43 59 57 . 127 Cannon 252 | . . . . . . . 12 49 10 23 . 10 9 51 4 . . . 15 19 . 50 Launcher 31 | . . . . . . . . . 4 6 . 4 3 6 . . . . . . . 8 Special . | . . . . . . . . . . . . . . . . . . . . . . . Kinetic 189 | 7 46 27 . . . 7 25 14 2 1 . 1 . 18 4 17 15 2 3 . . . Thermal 721 | 7 . 8 61 8 . 9 31 30 8 6 . 3 6 90 23 34 32 41 71 76 . 177 Explosive 31 | . . . . . . . . . 4 6 . 4 3 6 . . . . . . . 8 Electromagnetic 88 | . . . 1 . . . 6 19 2 17 . 7 5 27 4 . . . . . . . Robot Hit Streak 26 | 5 18 8 10 4 . 9 13 10 1 5 . 3 3 11 9 10 15 16 12 8 . 26 Robot Miss Streak 5 | 4 2 2 2 2 . 2 5 3 1 2 . 2 1 3 1 3 3 3 3 3 . 3 Penetration Max 1 | . . . . . . . . . . . . . . 1 1 1 1 1 . . . . Secondary Targets 7 | . . 1 1 1 . . . . . . . . . 1 1 . . 1 1 . . . Max Gunslinging Chain 1 | . . 1 1 1 . . . . . . . . . 1 1 . . 1 1 . . . Shots Hit Robots 639 | 6 33 28 34 5 . 13 43 35 4 15 . 3 3 90 23 36 31 23 40 47 . 127 Core Hits 312 | 3 16 6 18 2 . 5 18 11 4 22 . 6 5 36 11 14 13 11 22 14 . 75 Critical Kills 4 | . . . . . . . . . . . . . . 1 1 . 1 . . . . 1 Critical Parts Destroyed 1 | . . . . . . . . . . . . . . . . . 1 . . . . . Critical Strikes 20 | . . 1 3 1 . . . . . . . . . 3 3 3 3 1 . . . 2 Burn 13 | . . 1 3 1 . . . . . . . . . 1 1 3 1 1 . . . 1 Meltdown 1 | . . . . . . . . . . . . . . . . . . . . . . 1 Destroy 4 | . . . . . . . . . . . . . . 1 1 . 2 . . . . . Corrupt 2 | . . . . . . . . . . . . . . 1 1 . . . . . . . Melee Attacks . | . . . . . . . . . . . . . . . . . . . . . . . Impact . | . . . . . . . . . . . . . . . . . . . . . . . Slashing . | . . . . . . . . . . . . . . . . . . . . . . . Piercing . | . . . . . . . . . . . . . . . . . . . . . . . Sneak Attacks . | . . . . . . . . . . . . . . . . . . . . . . . Combat Hostiles . | . . . . . . . . . . . . . . . . . . . . . . . Follow-up Attacks . | . . . . . . . . . . . . . . . . . . . . . . . Damage Inflicted 20642 | 72 760 382 699 93 . 244 824 845 225 1121 . 268 362 2244 602 1015 709 729 1318 1608 . 6522 Guns 11792 | 72 414 382 699 93 . 244 721 196 . 7 . . . 992 506 1015 709 729 1019 1100 . 2894 Cannons 4359 | . . . . . . . 103 649 82 303 . 42 88 938 96 . . . 299 508 . 1251 Explosions 4491 | . 346 . . . . . . . 143 811 . 226 274 314 . . . . . . . 2377 Melee . | . . . . . . . . . . . . . . . . . . . . . . . Ramming . | . . . . . . . . . . . . . . . . . . . . . . . Kinetic 2420 | 21 414 252 . . . 126 426 196 . 7 . . . 59 93 399 307 60 60 . . . Thermal 13245 | 51 346 130 681 93 . 118 337 314 82 312 . 20 295 1355 413 616 402 669 1258 1608 . 4145 Explosive 3609 | . . . . . . . . . 143 603 . 226 . 260 . . . . . . . 2377 Electromagnetic 1368 | . . . 18 . . . 61 335 . 199 . 22 67 570 96 . . . . . . . Impact . | . . . . . . . . . . . . . . . . . . . . . . . Slashing . | . . . . . . . . . . . . . . . . . . . . . . . Piercing . | . . . . . . . . . . . . . . . . . . . . . . . Highest Corruption 16 | . . . . . . . . 1 11 11 11 11 . 9 9 9 9 4 1 10 . 16 Average Corruption 5 | . . . . . . . . 1 2 11 11 8 . 5 9 9 9 3 1 6 . 8 Corruption Purged 9 | . . . . . . . . . . . . 4 . . . . . . . 3 . 2 Corruption Blocked . | . . . . . . . . . . . . . . . . . . . . . . . Effects 161 | . . . . . . . . 2 4 17 2 10 . 24 21 19 14 10 8 2 . 28 Message Errors 38 | . . . . . . . . . . 5 . 2 . 5 3 5 3 3 3 . . 9 Matter Fused 32 | . . . . . . . . . 1 3 . 4 . 4 8 4 1 4 . 1 . 2 Heat Flow Errors 12 | . . . . . . . . . 1 1 . 1 . . 2 2 2 . 1 . . 2 Energy Discharges 18 | . . . . . . . . . . 3 . 2 . 6 1 2 1 1 1 . . 1 Parts Rejected 2 | . . . . . . . . . . . . . . . . . . . . . . 2 Parts Fused 2 | . . . . . . . . . 1 . . . . 1 . . . . . . . . Data Loss (minor) 25 | . . . . . . . . 1 1 2 2 1 . 2 5 . 2 1 1 . . 7 Data Loss (major) 9 | . . . . . . . . . . 2 . . . 2 . 1 2 1 . 1 . . Misfires 7 | . . . . . . . . . . . . . . . 2 2 1 . 2 . . . Alerts 7 | . . . . . . . . . . 1 . . . 2 . 2 2 . . . . . Misdirections 3 | . . . . . . . . . . . . . . . . . . . . . . 3 Weapon Failures 6 | . . . . . . . . 1 . . . . . 2 . 1 . . . . . 2 Overload Shots 8 | . . . . . . . . . . . . . . . . . . . . 1 . 7 Effects 1 | . . . . . . . . . . . . . . . . . . . . . . 1 Short Circuit 1 | . . . . . . . . . . . . . . . . . . . . . . 1 Overflow Damage 470 | . 58 . . . . . . . 5 128 . . 84 48 . . . . . . . 147 Projectiles 141 | . . . . . . . . . 5 38 . . . 48 . . . . . . . 50 Explosions 329 | . 58 . . . . . . . . 90 . . 84 . . . . . . . . 97 Melee . | . . . . . . . . . . . . . . . . . . . . . . . Knockbacks . | . . . . . . . . . . . . . . . . . . . . . . . Impact . | . . . . . . . . . . . . . . . . . . . . . . . Kinetic . | . . . . . . . . . . . . . . . . . . . . . . . Secondary . | . . . . . . . . . . . . . . . . . . . . . . . Self-Inflicted Damage 171 | . 50 . . . . . . . . 89 . . 32 . . . . . . . . . Shots 4 | . 1 . . . . . . . . 2 . . 1 . . . . . . . . . Rammed . | . . . . . . . . . . . . . . . . . . . . . . . Targets Rammed . | . . . . . . . . . . . . . . . . . . . . . . . Kicked . | . . . . . . . . . . . . . . . . . . . . . . . Crushed . | . . . . . . . . . . . . . . . . . . . . . . . Highest Temperature 675 | 27 2 41 224 18 . . 443 135 304 675 . 162 137 360 206 247 315 427 228 592 . 522 Average Temperature 101 | 12 2 8 61 18 . . 181 33 111 180 . 66 61 88 73 69 126 142 111 236 . 154 Received Heat Transfer 2489 | . 57 198 168 30 . 45 234 24 9 . . . . 435 90 162 63 . 84 27 . 863 Effects 21 | . . . . . . . 3 . 1 8 . . . 2 . . . 2 . 3 . 2 Shutdowns 2 | . . . . . . . . . . 1 . . . . . . . 1 . . . . Energy Bleed 6 | . . . . . . . . . . . . . . 1 . . . 1 . 3 . 1 Interference 9 | . . . . . . . 3 . 1 4 . . . 1 . . . . . . . . Matter Decay 2 | . . . . . . . . . . 1 . . . . . . . . . . . 1 Damage (minor) 2 | . . . . . . . . . . 2 . . . . . . . . . . . . Siege Activations 1 | . . . . . . . . . . . . . . . . . . . . . . 1 Total Turns 6 | . . . . . . . . . . . . . . . . . . . . . . 6 Longest Duration 6 | . . . . . . . . . . . . . . . . . . . . . . 6 Robots Corrupted . | . . . . . . . . . . . . . . . . . . . . . . . Combat Hostiles . | . . . . . . . . . . . . . . . . . . . . . . . Parts Fried 5 | . . . . . . . . . . 1 . . . 4 . . . . . . . . Impact Corruptions . | . . . . . . . . . . . . . . . . . . . . . . . Robots Melted 5 | . . . . . . . . . . . . . . . . 2 . . . . . 3 Combat Hostiles 3 | . . . . . . . . . . . . . . . . 1 . . . . . 2 Parts Melted 49 | 1 . . 1 . . . . 1 1 . . . . 4 . 4 2 4 6 6 . 19 Heat Transferred 19168 | 148 200 370 1554 259 . 259 592 518 148 335 . 37 237 2665 790 1147 703 888 1591 1789 . 4938 Parts Sabotaged . | . . . . . . . . . . . . . . . . . . . . . . . Parts Stolen . | . . . . . . . . . . . . . . . . . . . . . . . Parts Stripped . | . . . . . . . . . . . . . . . . . . . . . . . Power Chain Reactions 3 | . . . . . . . . . . 2 . . 1 . . . . . . . . . Alert | -11 -10 -10 -9 -9 -9 -8 -8 -7 -7 -7 -7 -6 -6 -6 -6 -6 -6 -5 -4 -3 -2 -1 ------- Run | Yrd Mat Min Mat Min Exi Min Mat Fac Low Low Dat Pro Fac Ext Cet Arc Hub Fac Fac Res Res Acc Peak Influence 736 | 15 281 135 389 198 . 55 116 139 . . . . 226 335 282 162 259 214 180 160 90 736 Initial 151 | . 9 42 13 151 . . 21 16 . . . . 56 42 150 25 . 28 6 27 90 53 Average 118 | 3 116 56 93 171 . 12 32 51 . . . . 127 200 191 109 90 95 77 66 90 333 Maximum Alert Level 3 | . 1 . 1 . . . . . . . . . 1 1 1 . 1 1 . . . 3 Low Security (%) 81 | 100 79 100 77 100 . 100 100 100 . . . . 61 56 28 100 84 98 100 100 100 35 Level 1 15 | . 20 . 22 . . . . . . . . . 38 43 71 . 15 1 . . . 31 Level 2 3 | . . . . . . . . . . . . . . . . . . . . . . 30 Level 3 . | . . . . . . . . . . . . . . . . . . . . . . 3 Level 4 . | . . . . . . . . . . . . . . . . . . . . . . . Level 5 . | . . . . . . . . . . . . . . . . . . . . . . . High Security . | . . . . . . . . . . . . . . . . . . . . . . . Max Security . | . . . . . . . . . . . . . . . . . . . . . . . Squads Dispatched 24 | . 2 . 1 . . . 1 1 . . . . 1 2 1 . 1 2 5 1 . 6 Investigation 5 | . 2 . 1 . . . . . . . . . . 1 1 . . . . . . . Extermination 12 | . . . . . . . . 1 . . . . 1 . . . 1 2 4 1 . 2 Reinforcement 3 | . . . . . . . 1 . . . . . . 1 . . . . 1 . . . Assault 1 | . . . . . . . . . . . . . . . . . . . . . . 1 Garrison 3 | . . . . . . . . . . . . . . . . . . . . . . 3 Intercept . | . . . . . . . . . . . . . . . . . . . . . . . Searches Triggered . | . . . . . . . . . . . . . . . . . . . . . . . Construction Impeded 1 | . . . . . . . . . . . . . . 1 . . . . . . . . Haulers Reinforced . | . . . . . . . . . . . . . . . . . . . . . . . Active Scanning Responses . | . . . . . . . . . . . . . . . . . . . . . . . Cargo Convoy Interrupts . | . . . . . . . . . . . . . . . . . . . . . . . Stealth | -11 -10 -10 -9 -9 -9 -8 -8 -7 -7 -7 -7 -6 -6 -6 -6 -6 -6 -5 -4 -3 -2 -1 --------- Run | Yrd Mat Min Mat Min Exi Min Mat Fac Low Low Dat Pro Fac Ext Cet Arc Hub Fac Fac Res Res Acc Distress Signals 17 | . . . 3 . . . 1 1 . . . . . 2 2 1 1 . 1 1 . 4 Communications Jammed . | . . . . . . . . . . . . . . . . . . . . . . . Distress Signals . | . . . . . . . . . . . . . . . . . . . . . . . Times Spotted 271 | . 12 5 29 5 . 3 9 12 4 15 . 4 8 27 10 15 9 9 15 7 . 73 Peak Tracking Total 13 | . 4 3 13 4 . 3 5 2 4 4 . 4 4 5 5 2 4 4 5 3 . 13 Tactical Retreats 13 | . . 1 3 1 . 1 . . . . . . . 1 . . 1 . . . . 5 Traps | -11 -10 -10 -9 -9 -9 -8 -8 -7 -7 -7 -7 -6 -6 -6 -6 -6 -6 -5 -4 -3 -2 -1 ------- Run | Yrd Mat Min Mat Min Exi Min Mat Fac Low Low Dat Pro Fac Ext Cet Arc Hub Fac Fac Res Res Acc Traps Triggered 10 | . 2 . 1 . . . . . . 1 . . . 3 . . 1 . 1 . . 1 Indirectly . | . . . . . . . . . . . . . . . . . . . . . . . Trap Hack Attempts . | . . . . . . . . . . . . . . . . . . . . . . . Triggered . | . . . . . . . . . . . . . . . . . . . . . . . Disarmed . | . . . . . . . . . . . . . . . . . . . . . . . Reprogrammed . | . . . . . . . . . . . . . . . . . . . . . . . Reused . | . . . . . . . . . . . . . . . . . . . . . . . Traps Extracted . | . . . . . . . . . . . . . . . . . . . . . . . Installed 3 | . . . . 3 . . . . . . . . . . . . . . . . . . Triggered 1 | . . . . . . . . . . 1 . . . . . . . . . . . . Most Traps Carried 3 | . . . . 3 . . . . . . . . . . . . . . . . . . Machines | -11 -10 -10 -9 -9 -9 -8 -8 -7 -7 -7 -7 -6 -6 -6 -6 -6 -6 -5 -4 -3 -2 -1 ---------- Run | Yrd Mat Min Mat Min Exi Min Mat Fac Low Low Dat Pro Fac Ext Cet Arc Hub Fac Fac Res Res Acc Machines Disabled 24 | . 5 . . 1 . . 1 2 . . . 1 3 4 1 3 2 . 1 . . . Max in Single Turn 5 | . 5 . . . . . 1 1 . . . 1 1 2 1 1 1 . 1 . . . Energy Cycler 1 | . . . . . . . . . . . . . . 1 . . . . . . . . Machines Repaired . | . . . . . . . . . . . . . . . . . . . . . . . Machines Dismantled . | . . . . . . . . . . . . . . . . . . . . . . . Machines Sabotaged . | . . . . . . . . . . . . . . . . . . . . . . . Overloaded Fab Kills . | . . . . . . . . . . . . . . . . . . . . . . . Hacking | -11 -10 -10 -9 -9 -9 -8 -8 -7 -7 -7 -7 -6 -6 -6 -6 -6 -6 -5 -4 -3 -2 -1 --------- Run | Yrd Mat Min Mat Min Exi Min Mat Fac Low Low Dat Pro Fac Ext Cet Arc Hub Fac Fac Res Res Acc Machines Accessed 45 | . 1 1 4 . 2 . 2 9 . 1 4 1 4 4 2 1 . . 8 . . 1 Terminals 28 | . 1 1 4 . . . 2 5 . . . . 3 3 2 . . . 6 . . 1 Fabricators 2 | . . . . . . . . 1 . . . . . . . . . . 1 . . . Repair Stations 3 | . . . . . . . . 2 . . . . 1 . . . . . . . . . Recycling Units 2 | . . . . . . . . 1 . . . . . 1 . . . . . . . . Scanalyzers . | . . . . . . . . . . . . . . . . . . . . . . . Garrison Access 1 | . . . . . . . . . . . . . . . . . . . 1 . . . Total Hacks 148 | . 4 2 9 . 24 . 3 15 . 1 30 1 8 9 6 19 . . 15 . . 2 Successful 106 | . . 1 5 . 24 . 1 11 . 1 30 1 4 2 1 19 . . 5 . . 1 Failed 42 | . 4 1 4 . . . 2 4 . . . . 4 7 5 . . . 10 . . 1 Catastrophic 8 | . . . 1 . . . 1 1 . . . . . 2 1 . . . 2 . . . Database Lockouts . | . . . . . . . . . . . . . . . . . . . . . . . Manual 20 | . 4 . 9 . 1 . . 4 . . . . 2 . . . . . . . . . Terminals 55 | . 4 2 9 . . . 3 8 . . . . 5 7 6 . . . 9 . . 2 Fabricators 6 | . . . . . . . . 2 . . . . . . . . . . 4 . . . Repair Stations 7 | . . . . . . . . 4 . . . . 3 . . . . . . . . . Recycling Units 3 | . . . . . . . . 1 . . . . . 2 . . . . . . . . Scanalyzers . | . . . . . . . . . . . . . . . . . . . . . . . Garrison Access 2 | . . . . . . . . . . . . . . . . . . . 2 . . . Terminal Hacks 95 | . . 1 5 . 24 . 1 5 . 1 30 1 2 1 1 19 . . 3 . . 1 Record 60 | . . . . . 23 . . 2 . . 11 1 . . 1 19 . . 2 . . 1 Part Schematic 11 | . . . . . . . . . . . 11 . . . . . . . . . . . Robot Schematic 5 | . . . . . . . . . . . 5 . . . . . . . . . . . Robot Analysis 4 | . . . 4 . . . . . . . . . . . . . . . . . . . Prototype ID Bank 5 | . . . . . . . . 1 . . 3 . 1 . . . . . . . . . Open Door 1 | . . . . . . . . . . 1 . . . . . . . . . . . . Open DSF 1 | . . . . . . . . 1 . . . . . . . . . . . . . . Emergency Access Points 1 | . . . . . . . . 1 . . . . . . . . . . . . . . Alert Level 2 | . . . . . . . 1 . . . . . . . . . . . 1 . . . Dispatch Records 1 | . . 1 . . . . . . . . . . . . . . . . . . . . Maintenance Status 2 | . . . 1 . . . . . . . . . 1 . . . . . . . . . Zone Layout 1 | . . . . . . . . . . . . . . 1 . . . . . . . . Derelict Proto ID Bank 1 | . . . . . 1 . . . . . . . . . . . . . . . . . Fabricator Hacks 3 | . . . . . . . . 1 . . . . . . . . . . 2 . . . Network Status 2 | . . . . . . . . 1 . . . . . . . . . . 1 . . . Build 1 | . . . . . . . . . . . . . . . . . . . 1 . . . Repair Station Hacks 5 | . . . . . . . . 3 . . . . 2 . . . . . . . . . Scan Component 3 | . . . . . . . . 2 . . . . 1 . . . . . . . . . Repair 2 | . . . . . . . . 1 . . . . 1 . . . . . . . . . Recycling Unit Hacks 2 | . . . . . . . . 1 . . . . . 1 . . . . . . . . Report Inventory 1 | . . . . . . . . 1 . . . . . . . . . . . . . . Retrieve Components 1 | . . . . . . . . . . . . . . 1 . . . . . . . . Scanalyzer . | . . . . . . . . . . . . . . . . . . . . . . . Garrison Access Hacks . | . . . . . . . . . . . . . . . . . . . . . . . Unauthorized Hacks 1 | . . . . . . . . 1 . . . . . . . . . . . . . . Terminals 1 | . . . . . . . . 1 . . . . . . . . . . . . . . Assimilate 1 | . . . . . . . . 1 . . . . . . . . . . . . . . Fabricators . | . . . . . . . . . . . . . . . . . . . . . . . Repair Stations . | . . . . . . . . . . . . . . . . . . . . . . . Recycling Units . | . . . . . . . . . . . . . . . . . . . . . . . Scanalyzers . | . . . . . . . . . . . . . . . . . . . . . . . Garrison Access . | . . . . . . . . . . . . . . . . . . . . . . . Data Cores Recovered . | . . . . . . . . . . . . . . . . . . . . . . . Used . | . . . . . . . . . . . . . . . . . . . . . . . Hacking Detections 28 | . 1 1 3 . . . 2 7 . . . . 2 3 2 . . . 6 . . 1 Full Trace Events 2 | . . . . . . . . . . . . . . 1 1 . . . . . . . Feedback Events . | . . . . . . . . . . . . . . . . . . . . . . . Feedback Blocked . | . . . . . . . . . . . . . . . . . . . . . . . Robot Schematics Acquired 5 | . . . . . . . . . . . 5 . . . . . . . . . . . Robots Built . | . . . . . . . . . . . . . . . . . . . . . . . Authchips . | . . . . . . . . . . . . . . . . . . . . . . . Time . | . . . . . . . . . . . . . . . . . . . . . . . Total Robot Build Rating . | . . . . . . . . . . . . . . . . . . . . . . . Part Schematics Acquired 11 | . . . . . . . . . . . 11 . . . . . . . . . . . Parts Built 2 | . . . . . . . . . . . . . . . . . . . 2 . . . Authchips . | . . . . . . . . . . . . . . . . . . . . . . . Time 128 | . . . . . . . . . . . . . . . . . . . 128 . . . Total Part Build Rating 16 | . . . . . . . . . . . . . . . . . . . 16 . . . Parts Repaired 2 | . . . . . . . . 1 . . . . 1 . . . . . . . . . Time 63 | . . . . . . . . 19 . . . . 44 . . . . . . . . . Parts Recycled . | . . . . . . . . . . . . . . . . . . . . . . . Recycled Matter . | . . . . . . . . . . . . . . . . . . . . . . . Retrieved Matter . | . . . . . . . . . . . . . . . . . . . . . . . Retrieved Components 2 | . . . . . . . . . . . . . . 2 . . . . . . . . Parts Scanalyzed . | . . . . . . . . . . . . . . . . . . . . . . . Part Schematics Acquired . | . . . . . . . . . . . . . . . . . . . . . . . Parts Damaged . | . . . . . . . . . . . . . . . . . . . . . . . Bothacking | -11 -10 -10 -9 -9 -9 -8 -8 -7 -7 -7 -7 -6 -6 -6 -6 -6 -6 -5 -4 -3 -2 -1 ------------ Run | Yrd Mat Min Mat Min Exi Min Mat Fac Low Low Dat Pro Fac Ext Cet Arc Hub Fac Fac Res Res Acc Used RIF Installer . | . . . . . . . . . . . . . . . . . . . . . . . Robots Hacked . | . . . . . . . . . . . . . . . . . . . . . . . Non-combat . | . . . . . . . . . . . . . . . . . . . . . . . Combat . | . . . . . . . . . . . . . . . . . . . . . . . Robot Hacks Applied . | . . . . . . . . . . . . . . . . . . . . . . . Relay Couplers Released . | . . . . . . . . . . . . . . . . . . . . . . . Fabnet Peak Effective % . | . . . . . . . . . . . . . . . . . . . . . . . Robots Rewired 6 | . . . . . . . . . . . . . . 6 . . . . . . . . Allies Hacked . | . . . . . . . . . . . . . . . . . . . . . . . Hacks Repelled . | . . . . . . . . . . . . . . . . . . . . . . . Allies | -11 -10 -10 -9 -9 -9 -8 -8 -7 -7 -7 -7 -6 -6 -6 -6 -6 -6 -5 -4 -3 -2 -1 -------- Run | Yrd Mat Min Mat Min Exi Min Mat Fac Low Low Dat Pro Fac Ext Cet Arc Hub Fac Fac Res Res Acc Total Allies 13 | . . 2 . 1 . . . 1 . . . . . 9 . . . . . . . . Largest Group 4 | . . 2 1 1 . . . 1 . . . . . 4 3 . . . . . . . Highest-Rated Group 121 | . . 54 23 31 . . . 26 . . . . . 121 90 . . . . . . . Highest-Rated Ally 39 | . . 31 23 31 . . . 26 . . . . . 39 39 . . . . . . . Total Orders 16 | . . . . . . . . 6 . . . . . 2 . . . 4 4 . . . STAY 5 | . . . . . . . . 3 . . . . . 2 . . . . . . . . FOLLOW 3 | . . . . . . . . 3 . . . . . . . . . . . . . . EXPLORE 3 | . . . . . . . . . . . . . . . . . . 1 2 . . . RETURN 5 | . . . . . . . . . . . . . . . . . . 3 2 . . . Ally Attacks 96 | . . 8 . 7 . . . . . . . . . 52 29 . . . . . . . Total Damage 2028 | . . 104 . 284 . . . . . . . . . 1141 499 . . . . . . . Kills 15 | . . 3 . 1 . . . . . . . . . 5 6 . . . . . . . Allies Corrupted . | . . . . . . . . . . . . . . . . . . . . . . . Allies Melted 1 | . . . . . . . . . . . . . . 1 . . . . . . . . Intel | -11 -10 -10 -9 -9 -9 -8 -8 -7 -7 -7 -7 -6 -6 -6 -6 -6 -6 -5 -4 -3 -2 -1 ------- Run | Yrd Mat Min Mat Min Exi Min Mat Fac Low Low Dat Pro Fac Ext Cet Arc Hub Fac Fac Res Res Acc Robot Analysis Total 4 | . . . 4 . . . . . . . . . . . . . . . . . . . Derelict Logs Recovered 6 | . . 1 . . . . . . 3 1 . 1 . . . . . . . . . . Drone Launches 6 | . . . . . . . . . . . . . . . . . . 3 3 . . . Drone Recoveries 5 | . . . . . . . . . . . . . . . . . . 3 2 . . . Exploration | -11 -10 -10 -9 -9 -9 -8 -8 -7 -7 -7 -7 -6 -6 -6 -6 -6 -6 -5 -4 -3 -2 -1 ------------- Run | Yrd Mat Min Mat Min Exi Min Mat Fac Low Low Dat Pro Fac Ext Cet Arc Hub Fac Fac Res Res Acc Turns Passed 13622 | 156 622 758 695 184 351 534 1089 926 441 441 42 312 579 1176 456 480 441 562 1275 702 126 1274 Spaces Moved 9827 | 85 336 430 278 97 219 287 579 1311 786 675 83 440 714 643 261 246 223 310 647 371 78 728 Core 200 | 13 . . . . . . . . . . . . . . . . . . . . . 187 Treads 4770 | . 269 430 278 97 219 287 378 . . . . . . 164 232 246 223 310 647 371 78 541 Legs 581 | 72 67 . . . . . 2 . . . . . . 411 29 . . . . . . . Wheels . | . . . . . . . . . . . . . . . . . . . . . . . Hover . | . . . . . . . . . . . . . . . . . . . . . . . Flight 4276 | . . . . . . . 199 1311 786 675 83 440 714 68 . . . . . . . . Fastest Speed 50 | 50 120 160 160 160 160 160 50 50 50 50 50 50 50 50 120 160 160 160 155 155 158 50 Average Speed 109 | 133 152 160 194 160 160 160 133 50 50 50 50 50 53 132 155 160 160 160 156 155 158 125 Slowest Speed 330 | 250 160 160 240 160 160 160 330 150 50 50 50 50 150 232 160 160 160 160 160 158 158 225 Overloaded Moves . | . . . . . . . . . . . . . . . . . . . . . . . Propulsion Burnouts . | . . . . . . . . . . . . . . . . . . . . . . . Robots Hopped . | . . . . . . . . . . . . . . . . . . . . . . . Cave-ins Triggered 2 | . . . . . . . . . 1 . . . . 1 . . . . . . . . Exploration Rate (%) 40 | 6 44 78 32 16 60 37 36 25 85 70 69 53 12 66 74 98 18 8 17 11 2 25 Regions Visited 22 Branch Regions 12 Pre-discovered Areas 3 | . . . . . 1 . . . 1 . 1 . . . . . . . . . . . Known Exits Taken 14 | . . . . . . . . 1 1 1 1 1 1 1 1 1 1 1 1 1 1 . Unknown Exits Taken 8 | 1 1 1 1 1 1 1 1 . . . . . . . . . . . . . . . Scrap Searched 7 | . . 1 . . . 1 . . 2 1 . 2 . . . . . . . . . . Spaces Dug 122 | . . . . . . . . . 30 . . 14 11 66 . . 1 . . . . . Terrain Destroyed 344 | . 38 . . . . . . . 35 68 . 15 30 78 1 6 5 2 10 9 . 47 Melee . | . . . . . . . . . . . . . . . . . . . . . . . Projectile 41 | . . . . . . . . . 1 . . . . . 1 6 5 2 10 9 . 7 AOE 303 | . 38 . . . . . . . 34 68 . 15 30 78 . . . . . . . 40 Terrain Rammed . | . . . . . . . . . . . . . . . . . . . . . . . Walls Destroyed . | . . . . . . . . . . . . . . . . . . . . . . . Machines Disabled . | . . . . . . . . . . . . . . . . . . . . . . . Actions | -11 -10 -10 -9 -9 -9 -8 -8 -7 -7 -7 -7 -6 -6 -6 -6 -6 -6 -5 -4 -3 -2 -1 --------- Run | Yrd Mat Min Mat Min Exi Min Mat Fac Low Low Dat Pro Fac Ext Cet Arc Hub Fac Fac Res Res Acc Total 11862 | 110 402 464 368 121 221 346 835 1515 814 739 82 512 897 852 289 295 275 354 870 451 80 970 Wait 1106 | 6 29 11 31 3 . 46 174 121 15 25 . 47 155 40 . 18 31 12 170 49 . 123 Move 9805 | 84 335 429 277 96 218 286 578 1310 785 674 82 439 713 642 260 245 222 309 646 370 77 728 Hop . | . . . . . . . . . . . . . . . . . . . . . . . Pick Up 107 | 6 5 1 12 5 1 2 13 13 . 5 . 1 5 13 4 4 . 4 6 . . 7 Fast Attach 103 | 7 1 2 3 . . 1 8 3 . 1 . 5 3 15 5 5 3 6 10 8 2 15 Attach 54 | . . 2 2 2 . . 6 2 . 3 . . 3 8 2 . . 2 . . . 22 Detach 14 | . . . 1 . . . 2 . . . . . 1 1 1 . . . . . . 8 Swap 84 | . 4 . 6 1 . 1 5 15 6 15 . 7 6 8 1 1 1 2 5 . . . Drop 140 | . 5 . 4 7 2 2 18 19 . 1 . 5 5 18 6 5 2 8 15 5 1 12 Fire 391 | 7 23 19 32 4 . 8 31 32 8 15 . 8 6 52 10 17 16 11 18 19 . 55 Melee . | . . . . . . . . . . . . . . . . . . . . . . . Ram . | . . . . . . . . . . . . . . . . . . . . . . . Kick . | . . . . . . . . . . . . . . . . . . . . . . . Crush . | . . . . . . . . . . . . . . . . . . . . . . . Escape Stasis 4 | . . . . . . . . . . . . . . 4 . . . . . . . . Rewire 51 | . . . . . . . . . . . . . . 51 . . . . . . . . Trap 3 | . . . . 3 . . . . . . . . . . . . . . . . . . Miscellaneous . | . . . . . . . . . . . . . . . . . . . . . . . Route ------- -11/Scrapyard -10/Materials -10/Mines -9/Materials -9/Mines (discovered 2 exits: *Mat / *Exi) -9/Exiles -8/Mines -8/Materials -7/Factory -7/Lower Caves -7/Lower Caves (discovered 2 exits: *Fac / *Dat) -7/Data Miner -6/Proximity Caves -6/Factory (discovered 4 exits: Low x2 / *Ext x2) -6/Extension (discovered 2 exits: *Fac / *Cet) -6/Cetus (discovered 2 exits: *Fac / *Arc) -6/Archives (discovered 3 exits: *Fac / *Hub x2) -6/Hub_04(d) -5/Factory -4/Factory -3/Research -2/Research -1/Access History --------- Turn | Location | Event 35 | -11/Scrapyard | Discovered new exit (range 15) 157 | -11/Scrapyard | Entered Materials 313 | -10/Materials | Build established: Mutant 533 | -10/Materials | Discovered new exit (range 8) 779 | -10/Materials | Entered Mines 1269 | -10/Mines | Core integrity fell below 50% 1305 | -10/Mines | Lost 4 parts (1p1u2w) 1328 | -10/Mines | Discovered new exit (range 8) 1485 | -10/Mines | Learned Materials terminal intel 1537 | -10/Mines | Entered Materials 1537 | -9/Materials | Accompanied by 1 ally 1537 | -9/Materials | Evolved 2 slots: Propulsion x1, Utility x1 1538 | -9/Materials | Loaded intel: 12 terminal locations 1575 | -9/Materials | Build established: Scavenger-Mutant 2211 | -9/Materials | Discovered new exit (range 10) 2232 | -9/Materials | Entered Mines 2235 | -9/Mines | Received a Mining Laser from a helpful Derelict 2281 | -9/Mines | Assembled infested the area 2285 | -9/Mines | Found a hidden stash of uninstalled traps 2310 | -9/Mines | Discovered new exit (range 13) 2410 | -9/Mines | Deemed a non-threat by the Exiles lab entrance 2410 | -9/Mines | Discovered new exit (range 5) 2416 | -9/Mines | Entered Exiles 2455 | -9/Exiles | Met 8R-AWN 2479 | -9/Exiles | Met EX-HEX 2527 | -9/Exiles | Met EX-BIN 2549 | -9/Exiles | Aligned with FarCom system 2551 | -9/Exiles | Given EX-Vault access code 2591 | -9/Exiles | Opened EX-Vault 2603 | -9/Exiles | Found Flying Fortress v7 2638 | -9/Exiles | Warned to stay clear of 0b10 Research branches 2686 | -9/Exiles | Met EX-DEC 2697 | -9/Exiles | Learned location of Zion (-6) 2753 | -9/Exiles | Discovered new exit (range 11) 2767 | -9/Exiles | Left Exiles lab with Flying Fortress v7 2767 | -9/Exiles | Entered Mines 3229 | -8/Mines | Discovered new exit (range 9) 3301 | -8/Mines | Entered Materials 3301 | -8/Materials | Evolved 2 slots: Propulsion x1, Utility x1 4140 | -8/Materials | Discovered new exit (range 12) 4390 | -8/Materials | Entered Factory 4390 | -7/Factory | Evolved 2 slots: Power x1, Utility x1 4530 | -7/Factory | Identified exit to DSF 4858 | -7/Factory | Repaired Hardlight Generator 5279 | -7/Factory | Discovered new exit (range 11) 5308 | -7/Factory | Identified exit to Lower Caves 5316 | -7/Factory | Entered Lower Caves 5499 | -7/Lower Caves | Learned location of Extension (-6) 5583 | -7/Lower Caves | Learned Factory emergency access door positions 5611 | -7/Lower Caves | Build established: Mutant 5700 | -7/Lower Caves | Crushed by falling debris 5700 | -7/Lower Caves | System corruption reached 10% 5722 | -7/Lower Caves | Discovered new exit (range 14) 5729 | -7/Lower Caves | Identified exit to Lower Caves 5757 | -7/Lower Caves | Entered another Lower Caves area 5763 | -7/Lower Caves | Encountered a Warlord checkpoint 5778 | -7/Lower Caves | Discovered new exit (range 10) 5859 | -7/Lower Caves | Identified exit to Factory 6078 | -7/Lower Caves | Build established: Scavenger-Mutant 6160 | -7/Lower Caves | Destroyed 8 combat bots 6194 | -7/Lower Caves | Discovered new exit (range 6) 6196 | -7/Lower Caves | Identified exit to Data Miner 6198 | -7/Lower Caves | Entered Data Miner 6198 | -7/Data Miner | Discovered new exit (range 6) 6208 | -7/Data Miner | Met Data Miner 6218 | -7/Data Miner | Learned location of Section 7 (-2) 6218 | -7/Data Miner | Acquired the access code to Warlord's prototype stash 6228 | -7/Data Miner | Received God Mode back door access code from Data Miner 6239 | -7/Data Miner | Identified exit to Proximity Caves 6240 | -7/Data Miner | Entered Proximity Caves 6273 | -6/Proximity Caves | Found Alien Artifact 6273 | -6/Proximity Caves | Identified Dimensional Node Initializer 6273 | -6/Proximity Caves | Initialized slip node 6542 | -6/Proximity Caves | Discovered exit to Factory (range 16) 6552 | -6/Proximity Caves | Entered Factory 6552 | -6/Factory | Evolved 2 slots: Utility x1, Weapon x1 6553 | -6/Factory | Identified exit to Lower Caves 6553 | -6/Factory | Identified exit to Extension 6765 | -6/Factory | Discovered exit to Extension (range 6) 6798 | -6/Factory | Repaired Imp. Medium Armor Plating 6885 | -6/Factory | Build established: Scavenger-Skirmisher 7131 | -6/Factory | Entered Extension 7132 | -6/Extension | Disrupted transfer network 7342 | -6/Extension | Rescued a captive Derelict 7391 | -6/Extension | Rescued a captive Derelict 7695 | -6/Extension | Energy Cycler disabled 7696 | -6/Extension | Rescued a captive Derelict 7696 | -6/Extension | Rescued a captive Derelict 7698 | -6/Extension | Rescued a captive Derelict 7701 | -6/Extension | Rescued a captive Derelict 7889 | -6/Extension | Crushed by falling debris 7920 | -6/Extension | Lost 3 parts (2u1w) 8280 | -6/Extension | Discovered new exit (range 10) 8281 | -6/Extension | Discovered new exit (range 6) 8287 | -6/Extension | Identified exit to Cetus 8290 | -6/Extension | Identified exit to Factory 8307 | -6/Extension | Entered Cetus 8307 | -6/Cetus | Accompanied by 3 allies 8324 | -6/Cetus | Spotted Cetus Guard 8324 | -6/Cetus | Spotted Cetus Guard 8327 | -6/Cetus | Spotted Cetus Guard 8328 | -6/Cetus | Build established: Scavenger-Tank 8328 | -6/Cetus | Spotted Cetus Guard 8337 | -6/Cetus | Destroyed Cetus Guard 8339 | -6/Cetus | Allies destroyed Cetus Guard 8351 | -6/Cetus | Allies destroyed Cetus Guard 8353 | -6/Cetus | Allies destroyed Cetus Guard 8373 | -6/Cetus | Lost 3 parts (1u2w) 8436 | -6/Cetus | Discovered exit to Factory (range 15) 8673 | -6/Cetus | Discovered new exit (range 16) 8695 | -6/Cetus | Identified exit to Archives 8730 | -6/Cetus | Spotted Cetus Guard 8730 | -6/Cetus | Spotted Cetus Guard 8763 | -6/Cetus | Entered Archives 8908 | -6/Archives | Unable to access archive contents 8993 | -6/Archives | Unable to access archive contents 9019 | -6/Archives | Unable to access archive contents 9035 | -6/Archives | Unable to access archive contents 9035 | -6/Archives | Unable to access archive contents 9038 | -6/Archives | Discovered new exit (range 15) 9067 | -6/Archives | Identified exit to Hub_04(d) 9101 | -6/Archives | Discovered exit to Hub_04(d) (range 13) 9153 | -6/Archives | Discovered exit to Factory (range 15) 9243 | -6/Archives | Entered Hub_04(d) 9622 | -6/Hub_04(d) | Discovered exit to Factory (range 15) 9684 | -6/Hub_04(d) | Entered Factory 9684 | -5/Factory | Evolved 2 slots: Utility x1, Weapon x1 10160 | -5/Factory | Build established: Scavenger-Skirmisher 10163 | -5/Factory | Discovered new exit (range 12) 10180 | -5/Factory | Identified exit to Factory 10246 | -5/Factory | Entered another Factory area 10246 | -4/Factory | Evolved 2 slots: Utility x2 10496 | -4/Factory | Found Prototype Processor 10496 | -4/Factory | Identified Exp. Melee Analysis Suite 10672 | -4/Factory | Fabricated Biometal Medium Treads (x2) 10774 | -4/Factory | Build established: Scavenger-Tank 11460 | -4/Factory | Discovered new exit (range 15) 11519 | -4/Factory | Identified exit to Research 11521 | -4/Factory | Entered Research 11521 | -3/Research | Evolved 2 slots: Utility x2 11677 | -3/Research | Found Hvy. Reactive Plating 12121 | -3/Research | Discovered new exit (range 11) 12134 | -3/Research | Identified exit to Research 12168 | -3/Research | System corruption reached 10% 12223 | -3/Research | Entered another Research area 12223 | -2/Research | Evolved 2 slots: Utility x2 12289 | -2/Research | Discovered new exit (range 13) 12338 | -2/Research | Identified exit to Access 12349 | -2/Research | Entered Access 12349 | -1/Access | Evolved 2 slots: Propulsion x1, Weapon x1 12547 | -1/Access | Garrison activated, responded to threat 13374 | -1/Access | First assault squad dispatched 13380 | -1/Access | System corruption reached 10% 13465 | -1/Access | Released all parts (11) 13493 | -1/Access | Lost 15 parts (3p4n4u4w) 13529 | -1/Access | Core integrity fell below 50% 13541 | -1/Access | Found Gamma Bomb Array 13579 | -1/Access | Spotted B-99 Colossus 13606 | -1/Access | Core integrity fell below 20% 13614 | -1/Access | Released all parts (3) 13623 | -1/Access | Destroyed by H-81 Overseer with Heavy Linear Accelerator Last Messages --------------- 13558_ =7:#WAR=&16DRF H&8#EGCD&IJOKBUV8|MSXWTAX 13560_ Dropped Antigrav Array. 13562_ Dropped Adv. Heat Sink. 13563_ Dropped Adv. Power Amplifier. 13576_ A3GUWF1V94F#MZFNZLRXGEH2VTY%AF/W0 13578_ U-05 Engineer builds a Door. 13580_ Hacking Suite destroyed. 13588_ Acquired 4 matter. 13596_ Penetrated by Slug. 13596_ Slug penetrates Wall. 13598_ Gamma Bomb Array destroyed. 13599_ Penetrated by Slug. 13601_ Acquired Hvy. Shock Bomb Launcher. 13608_ System corrupted: Hvy. Shock Bomb Launcher rejected. 13608_ Penetrated by Slug. 13609_ Activated siege mode. 13614_ Released Biometal Heavy Treads. 13614_ Released System Shield. 13614_ Released Hvy. Phase Cannon. 13617_ G-73 Enforcer suffers critical hit (Burn). Map ----- +----------------------------------------------------+ | ???????????????????# # #?????? | | ???????????????????# # #?????? | | ???????????????????# + #######?????? | | ???????????????????#! # #???????????? | | ???????????????############### #???????????? | | ???????????????# ## #???????????? | | ???????????????# ## #???????????? | | ???????????????# # #???????????? | | ???????????????# # #???????????? | | ???????????????# "" # #???????????? | | ???????????????? "" g / #### ###???? | | ????????????????"""""" # !*! | | ???????????????#"""""" # **! | | ???????????????# "" gb# *!! | | ???????????????# "" ] g g # | | ???????????????# g]gg # | | ??????????????# Y = # | | ??????????????##########g#### | | ???????????????????????# #??# ! | | ???????????????????????# #??# ""Y"" ! | | ???????????????????????# ##?# """"" ! | | ???????????????????????# ;#?# ? | | ???????????????????????# ##?# = ? | | ???????????????????????# #??# ???? ??? | | ???????????????????????#%#??#####????#######????? | | ???????????????????????#@#??????????????????????? | | ??????????????????????# HgR??g??????????????????? | | ??????????????????????# ##????????????????????? | | ??????????????????????+ #?????????????????????? | | ??????????????????????# #?????????????????????? | | ??????????????????????# #?????????????????????? | | ?????????????????????? ?????????????????????? | | ?????????????????????? ?????????????????????? | | ?????????????????????? ?????????????????????? | | ?????????????????????# #????????????????????? | | ?????????????????????# #????????????????????? | | ?????????????????????### ###????????????????????? | | ???????????????????????? ???????????????????????? | | ???????????????????????? ???????????????????????? | | ???????????????????????? ???????????????????????? | | ????????????????????????+???????????????????????? | | ????????????????????????????????????????????????? | | ????????????????????????????????????????????????? | | ????????????????????????????????????????????????? | | ????????????????????????????????????????????????? | | ????????????????????????????????????????????????? | | ????????????????????????????????????????????????? | | ????????????????????????????????????????????????? | | ????????????????????????????????????????????????? | | ????????????????????????????????????????????????? | +----------------------------------------------------+ Best States ------------- Heat Dissipation 152 Energy Generation 45 Energy Capacity 600 Matter Stores 300 Matter Capacity 300 Sight Range 20 Robot Scan Range 16 Terrain Scan Range 16 Terrain Scan Density 210 Power Amplification 30 Base Temperature (-) 200 Armor Coverage 825 Resistance: KI 40 Resistance: EX 25 Phase Shifting 10 Evasion (%) 60 Targeting Accuracy 16 Target Analysis 8 Recoil Reduction 5 Energy Filtering 30 Offensive Hacking 10 Defensive Hacking 10 Item Schematics ----------------- Combat Drone Bay | -7/Data Miner | Free Lgt. Regenerative Plating | -7/Data Miner | Free Cld. Aerolev Unit | -7/Data Miner | Free Thermal Defense Suite | -7/Data Miner | Free Antimatter Cannon | -7/Data Miner | Free Antigrav System | -7/Data Miner | Free Adv. Salvage Targeting Computer | -7/Data Miner | Free Hpw. Shock Rifle | -7/Data Miner | Free Lance | -7/Data Miner | Free Adv. Power Amplifier | -7/Data Miner | Free Centrium Wheel | -7/Data Miner | Free Robot Schematics ------------------ H-66 Slayer | -7/Data Miner | Free A-15 Conveyor | -7/Data Miner | Free G-47 Trooper | -7/Data Miner | Free Y-54 Guardian | -7/Data Miner | Free G-50 Soldier | -7/Data Miner | Free Fabricated ------------ Biometal Medium Treads | x2 | -4/Factory | Preloaded Alien Tech Used ----------------- Dimensional Node Initializer Achievements -------------- Explorer Omniscient Cartographer True Hacker Challenges ------------ None Game ------ Seed LatentMultitargetingScrap Manual? 0 Play Time 03:35:07 Cumulative 45.2 hours Start 2024.04.27 @ 12:17:40 End 2024.04.27 @ 18:08:28 Sessions 3 Manual Loads 0 Difficulty Rogue Special Mode None Game No. 29 Rogue 29 Adventurer 0 Explorer 0 Win Type - Total 0 Types 0/0/0/0/0/0/0/0/0 Lore% 40 Gallery% 42 Achievement% 31 Wizard Run 0 Options --------- Layout 0 ASCII 0 Keyboard 0 Movement Mouse Keybinds 0 Fullscreen 2 Font 18/SmallcapsGlow Map View 76x50 Zoom Use 0% Tactical HUD 1 Map Filters NONE Filters NONE Steam 1 RUN: f7c734ca-465f-4085-9dcc-cef4ccbc2a26